bitfinex/quotes_ETHUSD_20250413
["timestamp","ask_amount","ask_price","bid_price","bid_amount"]
[1744508776892,6.86409,1636.6,1636.2,12.22326]
[1744508777193,6.86409,1636.6,1636.2,6.11158]
[1744508777791,12.97468,1636.6,1636.2,6.11158]
[1744508778091,6.86409,1636.6,1636.2,6.11158]
[1744508778912,12.9746,1636.6,1636.2,6.11158]
[1744508779105,14.27206,1636.6,1636.2,6.11158]
[1744508780102,8.16147,1636.6,1636.2,6.11158]
[1744508780317,8.16147,1636.6,1636.2,6.11157]
[1744508780670,14.27199,1636.6,1636.2,6.11157]
[1744508781321,8.16147,1636.6,1636.2,6.11157]
[1744508781829,8.16147,1636.6,1636.1,6.395]
[1744508781830,2.05096,1636.6,1636.1,6.395]
[1744508781979,6.11112,1636.4,1636.1,0.02]
[1744508783182,6.89777,1636.5,1636.2,6.11154]
[1744508783183,0.7869,1636.5,1636.2,6.11154]
[1744508783379,6.89752,1636.5,1636.1,6.13187]
[1744508783778,3.0,1636.6,1636.1,0.02]
[1744508783978,0.7869,1636.4,1636.1,0.02]
[1744508784205,9.89862,1636.2,1636.1,0.02]
[1744508784428,11.83059954,1636.2,1636.1,0.02]
[1744508789193,6.11134,1636.3,1636.1,0.02]
[1744508789425,3.0,1636.3,1636.1,0.02]
[1744508789638,0.7833,1636.4,1636.1,0.02]
[1744508789783,6.11162,1636.3,1636.1,0.02]
[1744508790384,6.11172,1636.2,1636.1,0.02]
[1744508792928,6.91702,1636.2,1636.1,0.02]
[1744508793110,11.689354,1636.2,1636.1,0.02]
[1744508793435,14.1827698,1636.2,1636.1,0.02]
[1744508794287,20.2927698,1636.2,1636.1,1e-05]
[1744508795587,20.59780624,1636.2,1636.1,1e-05]
[1744508796525,26.6717698,1636.2,1636.1,1e-05]
[1744508796728,8.139354,1636.2,1636.1,1e-05]
[1744508797311,6.11162,1636.3,1636.1,1e-05]
[1744508797511,12.22322,1636.3,1636.1,1e-05]
[1744508797780,12.22324,1636.3,1636.1,1e-05]
[1744508797962,6.1116,1636.3,1636.1,1e-05]
[1744508798446,16.29531,1636.4,1636.1,1e-05]
[1744508798447,6.11097,1636.4,1636.1,1e-05]
[1744508798853,6.1115,1636.3,1636.1,1e-05]
[1744508799225,6.11101,1636.4,1636.1,1e-05]
[1744508799546,6.11152,1636.3,1636.1,1e-05]
[1744508800410,6.11097,1636.4,1636.1,1e-05]
[1744508800613,12.22224,1636.4,1636.1,1e-05]
[1744508800812,6.11097,1636.4,1636.1,1e-05]
[1744508801563,6.91556,1636.6,1636.2,6.11152]
[1744508801755,6.91556,1636.6,1636.2,6.91242]
[1744508802426,6.11026,1636.6,1636.2,6.91242]
[1744508802626,12.22074,1636.6,1636.2,6.91242]
[1744508802957,6.11026,1636.6,1636.2,6.91242]
[1744508803169,12.22076,1636.6,1636.2,6.91242]
[1744508803671,12.22076,1636.6,1636.2,8.2759924]
[1744508804339,6.11061,1636.5,1636.2,6.91242]
[1744508804679,6.11026,1636.6,1636.2,6.91242]
[1744508804973,3.0,1636.6,1636.2,6.9126]
[1744508805336,9.11045,1636.6,1636.2,6.9126]
[1744508805679,9.11045,1636.6,1636.2,13.02418]
[1744508805978,15.22091,1636.6,1636.2,6.91248]
[1744508806338,6.11172,1636.2,1636.1,1e-05]
[1744508806765,9.11172,1636.2,1636.1,1e-05]
[1744508811784,13.17750444,1636.2,1636.1,1e-05]
[1744508814003,0.55,1635.6,1635.2,0.8185]
[1744508814154,6.11531,1635.3,1635.1,0.02]
[1744508814486,6.11545,1635.2,1635.1,0.02]
[1744508814851,9.11545,1635.2,1635.1,0.02]
[1744508818284,9.66545,1635.2,1635.1,0.02]
[1744508818490,19.31513444,1635.2,1635.1,0.02]
[1744508820082,16.55495,1635.2,1635.1,0.02]
[1744508820385,18.3331291,1635.2,1635.1,0.02]
[1744508820757,18.8831291,1635.2,1635.1,0.02]
[1744508821785,18.8831291,1635.2,1635.1,1e-05]
[1744508822989,6.11882,1634.4,1634.2,0.3968391]
[1744508823155,6.730702,1634.4,1634.2,0.3968391]
[1744508823357,6.11811,1634.5,1634.2,0.3968391]
[1744508823656,3.0,1634.5,1634.2,0.3968391]
[1744508823857,6.11874,1634.4,1634.2,0.3968391]
[1744508824200,6.11868,1634.4,1634.2,0.3968391]
[1744508824396,12.23744,1634.4,1634.2,0.3968391]
[1744508824606,9.66882,1634.3,1634.2,0.3968391]
[1744508824755,16.05082,1634.3,1634.2,0.3968391]
[1744508825084,16.51844665,1634.3,1634.2,0.3968391]
[1744508826399,3.0,1633.9,1633.8,0.07955994]
[1744508826621,9.12032,1633.9,1633.8,0.07955994]
[1744508827169,6.12032,1633.9,1633.8,0.07955994]
[1744508829277,10.44862,1633.9,1633.8,0.07955994]
[1744508830503,16.55862,1633.9,1633.8,0.07955994]
[1744508830675,17.45689159,1633.9,1633.8,0.07955994]
[1744508831994,17.45689159,1633.9,1633.8,9.94e-06]
[1744508832707,16.90689159,1633.9,1633.8,9.94e-06]
[1744508832897,17.45689159,1633.9,1633.8,9.94e-06]
[1744508834400,6.12182,1633.5,1633.4,0.01]
[1744508834587,16.87632,1633.5,1633.4,0.01]
[1744508834923,16.05682,1633.5,1633.4,0.01]
[1744508835513,22.16682,1633.5,1633.4,0.01]
[1744508835723,13.21255444,1633.3,1633.2,0.005]
[1744508836130,13.66385448,1633.3,1633.2,0.005]
[1744508836826,13.66385448,1633.3,1633.2,1e-05]
[1744508836827,19.77385448,1633.3,1633.2,1e-05]
[1744508837127,9.67332,1633.1,1633.0,0.02482511]
[1744508837345,9.67332,1633.1,1633.0,5.11e-06]
[1744508837346,22.94912,1633.1,1633.0,5.11e-06]
[1744508837488,9.67444,1632.8,1632.7,0.01]
[1744508837690,10.13074378,1632.8,1632.7,0.01]
[1744508837890,16.24074378,1632.8,1632.7,0.01]
[1744508838096,19.78072822,1632.8,1632.7,0.01]
[1744508838549,26.16672822,1632.8,1632.7,0.01]
[1744508838850,27.06499981,1632.8,1632.7,0.01]
[1744508839122,19.44289603,1632.8,1632.7,0.01]
[1744508839329,21.62244,1632.8,1632.7,0.01]
[1744508839621,15.23444,1632.8,1632.7,0.01]
[1744508840711,8.03984467,1633.1,1632.7,0.7705]
[1744508840903,6.12434,1632.9,1632.7,0.7705]
[1744508841117,12.24873,1632.9,1632.7,0.01]
[1744508841321,9.12444,1632.8,1632.7,0.01]
[1744508841941,3.0,1632.8,1632.7,0.01]
[1744508842140,9.12409,1632.9,1632.7,0.01]
[1744508842360,15.2485,1632.9,1632.7,0.01]
[1744508842636,6.12444,1632.8,1632.7,0.01]
[1744508842840,10.64894,1632.9,1632.7,0.01]
[1744508843027,6.12444,1632.8,1632.7,0.01]
[1744508844329,22.17344,1632.8,1632.7,0.01]
[1744508844733,6.12444,1632.8,1632.7,0.01]
[1744508845744,9.389,1633.0,1632.7,0.01]
[1744508845943,6.12421,1632.9,1632.7,0.01]
[1744508846847,3.0,1633.0,1632.7,0.01]
[1744508847032,9.26645665,1633.2,1632.8,6.88463]
[1744508847033,6.11,1633.2,1632.8,6.88463]
[1744508847235,6.12278,1633.3,1632.9,0.7605]
[1744508847816,6.12298,1633.2,1632.9,0.7605]
[1744508848044,12.24561,1633.3,1632.9,6.88454]
[1744508848595,6.12278,1633.3,1632.9,6.88454]
[1744508848900,6.12155,1633.6,1633.1,0.7605]
[1744508849200,8.76525665,1633.8,1633.4,0.7605]
[1744508849343,6.12182,1633.6,1633.4,0.7605]
[1744508849784,6.12182,1633.5,1633.4,0.7605]
[1744508850676,6.12288,1633.3,1633.2,0.7605]
[1744508851283,6.12334,1633.1,1632.9,0.7605]
[1744508851479,6.12302,1633.2,1632.9,0.7605]
[1744508852384,9.12288,1633.3,1633.0,0.7605]
[1744508852689,6.12296,1633.2,1633.0,0.7605]
[1744508854409,6.12332,1633.1,1633.0,0.7605]
[1744508855602,6.1241,1632.9,1632.8,0.7605]
[1744508855800,9.1241,1632.9,1632.8,0.7605]
[1744508855969,6.12444,1632.8,1632.7,0.01]
[1744508856358,9.12444,1632.8,1632.7,0.01]
[1744508856600,9.67444,1632.8,1632.7,0.01]
[1744508856804,11.254294,1632.8,1632.7,0.01]
[1744508857299,18.144494,1632.8,1632.7,0.01]
[1744508858102,18.59538742,1632.8,1632.7,0.01]
[1744508859797,7.45539,1632.6,1632.5,0.3968391]
[1744508859972,7.45539,1632.6,1632.1,0.02]
[1744508859973,10.4569,1632.2,1632.1,0.02]
[1744508860171,21.7407,1632.2,1632.1,0.02]
[1744508860385,23.0744,1632.2,1632.1,0.02]
[1744508861103,23.53493476,1632.2,1632.1,0.02]
[1744508861268,23.53493476,1632.2,1631.4,0.94531079]
[1744508861269,6.12919,1631.6,1631.4,0.94531079]
[1744508861606,6.1279,1631.9,1631.5,6.12916]
[1744508861764,6.12783,1631.9,1631.4,12.25914]
[1744508861968,6.12783,1631.9,1631.5,6.12923]
[1744508862194,6.12821,1631.8,1631.4,6.12945]
[1744508862393,6.12872,1631.7,1631.3,12.25988]
[1744508862600,6.12745,1632.0,1631.3,6.12982]
[1744508862808,6.12877,1631.7,1631.3,12.872722]
[1744508863034,6.12877,1631.7,1631.3,6.742802]
[1744508863197,6.740575,1631.9,1631.4,6.1297]
[1744508863517,6.740575,1631.9,1630.9,0.3968391]
[1744508863518,6.12959,1631.5,1630.9,0.3968391]
[1744508863802,9.722959,1631.4,1630.9,0.3968391]
[1744508864014,9.11,1631.4,1630.9,0.3968391]
[1744508864218,12.26086,1631.3,1630.9,0.3968391]
[1744508864428,6.13043,1631.3,1630.9,0.3968391]
[1744508864610,9.11,1631.4,1631.0,0.7984]
[1744508864924,12.23986,1631.4,1631.0,7.66218691]
[1744508865293,6.13055,1631.2,1631.0,1.53107691]
[1744508865633,6.13055,1631.2,1631.0,0.7984]
[1744508865924,6.13083,1631.1,1631.0,0.7984]
[1744508866702,6.12555,1631.2,1631.0,0.7984]
[1744508866944,6.1301,1631.3,1631.0,0.7984]
[1744508867453,12.26048,1631.3,1631.0,0.7984]
[1744508867777,12.23972,1631.4,1631.0,0.7984]
[1744508867942,12.23977,1631.4,1631.0,7.66194991]
[1744508868268,6.11,1631.4,1631.0,0.7984]
[1744508868424,6.1312,1631.0,1630.9,0.3968391]
[1744508868626,9.6812,1631.0,1630.9,0.3968391]
[1744508868862,10.4638,1631.0,1630.9,0.3968391]
[1744508869176,12.82116078,1631.0,1630.9,0.3968391]
[1744508870051,6.68996078,1631.0,1630.9,0.3968391]
[1744508870253,9.1312,1631.0,1630.9,0.3968391]
[1744508870423,6.13096,1631.1,1630.9,0.3968391]
[1744508870645,6.13091,1631.1,1630.9,0.3968391]
[1744508870991,6.1312,1631.0,1630.9,0.3968391]
[1744508871137,10.907411,1631.0,1630.9,0.3968391]
[1744508871344,12.20428284,1631.0,1630.9,0.3968391]
[1744508873391,12.20428284,1631.0,1630.1,0.02]
[1744508873392,6.13397,1630.3,1630.1,0.02]
[1744508873563,12.26816,1630.3,1630.1,0.02]
[1744508873745,6.13421,1630.2,1630.1,0.02]
[1744508873948,12.26816,1630.3,1630.1,0.02]
[1744508874243,0.55,1630.0,1629.4,0.02588625]
[1744508874552,6.13617,1629.7,1629.4,0.02588625]
[1744508874754,6.13684,1629.6,1629.4,0.02588625]
[1744508874989,8.51063665,1630.2,1629.5,0.7784]
[1744508875185,0.55,1629.9,1629.5,0.7784]
[1744508875344,0.55,1630.0,1629.5,0.7784]
[1744508875544,6.13588,1629.8,1629.5,0.7784]
[1744508875769,6.13473,1630.1,1629.5,0.7784]
[1744508876079,6.13477,1630.1,1629.7,6.95847]
[1744508876380,6.13523,1630.0,1629.7,0.8224]
[1744508876583,12.26901,1630.2,1629.7,6.95826]
[1744508876792,12.26901,1630.2,1629.7,7.654086]
[1744508876958,9.13478,1630.1,1629.7,1.518226]
[1744508877274,3.0,1630.1,1629.7,6.95845]
[1744508877461,12.91288,1630.3,1629.8,6.13553]
[1744508877782,6.13426,1630.2,1629.8,6.13553]
[1744508878101,6.13466,1630.1,1629.7,0.8224]
[1744508878299,6.779,1630.3,1629.7,0.8224]
[1744508878300,6.13421,1630.2,1629.7,0.8224]
[1744508878608,6.13421,1630.2,1629.4,0.02588625]
[1744508878609,0.613421,1630.1,1629.4,0.02588625]
[1744508878793,6.13612,1629.7,1629.5,0.8224]
[1744508879173,6.13647,1629.6,1629.4,0.02588625]
[1744508879370,6.13685,1629.5,1629.4,0.02588625]
[1744508879905,9.93443,1629.8,1629.4,0.02588625]
[1744508879906,6.1361,1629.7,1629.4,0.02588625]
[1744508880211,3.0,1629.8,1629.4,0.02588625]
[1744508880365,12.27282,1629.7,1629.4,0.02588625]
[1744508880568,6.13649,1629.6,1629.4,0.02588625]
[1744508880870,3.0,1629.8,1629.4,0.02588625]
[1744508881083,6.1355,1629.9,1629.4,0.02588625]
[1744508881306,3.0,1629.8,1629.4,0.02588625]
[1744508881472,6.13971,1628.8,1628.1,0.8387]
[1744508881663,6.13909,1629.0,1628.1,0.8387]
[1744508881664,3.0,1628.9,1628.1,0.8387]
[1744508881860,12.28104,1628.6,1628.1,6.98053]
[1744508882062,2.37625665,1628.7,1628.1,0.02]
[1744508882307,6.14144,1628.3,1628.1,0.02]
[1744508882508,0.8317,1628.4,1628.1,0.02]
[1744508882663,7.181,1628.6,1628.1,0.02]
[1744508882864,6.14048,1628.6,1628.1,0.8387]
[1744508883063,8.51481665,1629.1,1628.6,6.14005]
[1744508883316,0.8317,1629.3,1628.2,6.96045]
[1744508883468,6.13689,1629.5,1628.7,6.13977]
[1744508883673,6.1375,1629.4,1628.8,6.13933]
[1744508883890,6.1375,1629.4,1628.5,6.14044]
[1744508883891,2.44172263,1628.9,1628.1,0.71812]
[1744508884098,3.0,1628.6,1628.1,0.02]
[1744508884274,6.14175,1628.2,1628.1,0.02]
[1744508884610,6.14175,1628.2,1627.3,0.8187]
[1744508884611,6.14326,1627.8,1627.3,0.8187]
[1744508884820,6.14401,1627.6,1627.1,0.02]
[1744508884962,6.97722,1627.2,1627.1,0.02]
[1744508885162,6.14706,1626.8,1626.5,0.7887]
[1744508885407,6.14668,1626.9,1626.5,0.7887]
[1744508885654,3.0,1627.1,1626.5,6.93685]
[1744508885817,6.61672453,1626.9,1626.1,0.02]
[1744508886155,6.14814,1626.6,1626.1,6.16959]
[1744508886307,6.14846,1626.5,1626.0,0.3668391]
[1744508886504,6.14722,1626.8,1626.2,6.14894]
[1744508886703,6.14843,1626.5,1626.0,0.3168391]
[1744508886914,6.14768,1626.7,1626.0,0.96353701]
[1744508887140,6.14722,1626.8,1626.2,6.14895]
[1744508887353,6.14665,1627.0,1626.5,6.14793]
[1744508887645,6.14613,1627.1,1626.5,6.14786]
[1744508887842,6.14576,1627.2,1626.5,7.37772]
[1744508888145,6.14533,1627.3,1626.4,6.14854]
[1744508888439,0.7939,1627.7,1627.0,6.14623]
[1744508888440,6.14434,1627.6,1627.0,6.14623]
[1744508888648,6.93677,1628.0,1627.5,6.14421]
[1744508888950,0.45629531,1628.1,1627.4,8.044]
[1744508889117,9.39685263,1628.4,1628.2,6.14155]
[1744508889118,0.02,1628.4,1628.2,6.14155]
[1744508889316,0.02,1628.4,1628.2,12.28312]
[1744508889620,0.02,1628.4,1627.9,8.044]
[1744508889621,0.02,1628.4,1628.3,6.14137]
[1744508889947,0.02,1628.4,1628.2,6.14175]
[1744508890157,0.02,1628.4,1628.3,6.14137]
[1744508891008,4.06460471,1629.2,1628.9,6.13906]
[1744508891718,4.06460471,1629.2,1628.8,6.13946]
[1744508891925,10.20259471,1629.2,1628.8,6.13946]
[1744508892235,10.20259471,1629.2,1628.7,14.18474]
[1744508892569,6.13911,1629.0,1628.5,6.14035]
[1744508893343,6.1391,1629.0,1628.4,6.89989]
[1744508893545,6.1391,1629.0,1628.5,6.1403]
[1744508893750,1.02025947,1629.1,1628.7,6.13986]
[1744508893966,3.0,1629.2,1628.7,6.13986]
[1744508894255,3.913786,1629.2,1628.8,6.13941]
[1744508894958,3.913786,1629.2,1628.8,6.13942]
[1744508895110,0.02,1629.4,1628.9,6.13893]
[1744508895310,0.02,1629.4,1628.9,6.13891]
[1744508895311,6.13775,1629.3,1628.9,6.13891]
[1744508895517,0.02,1629.4,1629.2,6.13776]
[1744508896056,0.02,1629.4,1629.2,7.365367]
[1744508896237,0.02,1629.4,1629.2,6.13776]
[1744508896408,0.02,1629.4,1629.2,6.13769]
[1744508896608,0.02,1629.4,1629.3,6.1376]
[1744508898722,0.02,1629.4,1629.3,6.8965]
[1744508902668,0.02,1629.4,1629.3,14.9385]
[1744508902860,0.02,1629.4,1629.3,17.046119]
[1744508905363,0.02,1629.4,1629.3,9.004119]
[1744508905670,0.02,1629.4,1629.3,6.8965]
[1744508905865,0.02,1629.4,1629.3,0.7589]
[1744508906167,0.02,1629.4,1629.3,6.8965]
[1744508907569,0.02,1629.4,1629.3,0.7589]
[1744508907769,0.02,1629.4,1629.3,6.1376]
[1744508908672,0.02,1629.4,1629.3,14.1786]
[1744508908871,0.02,1629.4,1629.3,16.210229]
[1744508910281,0.02,1629.4,1629.3,14.1786]
[1744508911142,0.02,1629.4,1629.3,6.1376]
[1744508911342,0.02,1629.4,1629.3,14.1776]
[1744508913552,0.02,1629.4,1629.3,8.04]
[1744508914042,0.02,1629.4,1628.9,6.13886]
[1744508914243,6.13762,1629.3,1628.8,6.13928]
[1744508914476,6.753382,1629.3,1628.9,6.1391]
[1744508914680,0.02,1629.4,1629.1,6.1382]
[1744508914881,6.13786,1629.3,1628.9,6.13907]
[1744508915178,6.13786,1629.3,1628.9,12.27785]
[1744508915483,6.13786,1629.3,1629.0,6.13871]
[1744508915840,0.02,1629.4,1629.2,6.13792]
[1744508916044,6.15756,1629.4,1629.0,6.13872]
[1744508916285,6.773316,1629.4,1629.0,6.13872]
[1744508916444,6.13779,1629.3,1628.9,14.17909]
[1744508916845,0.02,1629.4,1629.3,6.1376]
[1744508917082,0.02,1629.4,1629.0,6.13873]
[1744508917380,6.13767,1629.3,1628.9,20.31805]
[1744508917579,0.02,1629.4,1629.1,6.1382]
[1744508917768,6.13766,1629.3,1628.9,6.13889]
[1744508918571,8.139877,1629.4,1629.1,6.1382]
[1744508918572,2.002307,1629.4,1629.1,6.1382]
[1744508919483,2.002307,1629.4,1629.0,6.13871]
[1744508919648,6.13806,1629.2,1628.8,14.17647]
[1744508919847,2.002307,1629.4,1628.8,6.13933]
[1744508919848,6.13794,1629.3,1628.8,6.13933]
[1744508920084,6.13794,1629.3,1628.9,6.13898]
[1744508920287,0.7729,1629.4,1628.7,8.8179]
[1744508920495,6.91026,1629.4,1628.9,6.13882]
[1744508920693,6.91026,1629.4,1629.0,6.13848]
[1744508920995,0.7729,1629.4,1629.2,6.13777]
[1744508921299,0.7729,1629.4,1629.1,6.13832]
[1744508921584,0.02,1629.4,1629.2,6.13796]
[1744508921750,0.02,1629.4,1629.1,6.13832]
[1744508921948,6.15723,1629.4,1629.1,6.13832]
[1744508922250,0.02,1629.4,1629.2,6.13787]
[1744508922585,0.02,1629.4,1629.2,12.27559]
[1744508922767,0.02,1629.4,1628.7,15.83922]
[1744508922768,6.15722,1629.4,1628.7,15.83922]
[1744508922946,6.772942,1629.4,1629.0,6.13836]
[1744508923382,6.772942,1629.4,1629.0,12.27686]
[1744508923582,6.772942,1629.4,1629.0,6.13836]
[1744508923583,0.7545,1629.3,1629.0,6.13836]
[1744508923904,0.7545,1629.3,1629.0,6.13873]
[1744508924440,0.7545,1629.3,1629.0,6.13853]
[1744508924627,6.13875,1629.0,1628.6,6.13994]
[1744508924827,6.13839,1629.1,1628.7,6.13972]
[1744508925133,6.13874,1629.0,1628.6,12.27994]
[1744508925299,6.13874,1629.0,1628.6,6.13994]
[1744508925497,6.13981,1628.8,1628.5,8.038]
[1744508925689,6.94111,1628.9,1628.5,14.17843]
[1744508925884,0.802,1628.9,1628.6,6.14003]
[1744508926121,0.802,1628.9,1628.5,14.17861]
[1744508926331,6.1395,1628.8,1628.5,8.038]
[1744508926502,6.1395,1628.8,1628.4,6.14097]
[1744508926703,6.1395,1628.8,1628.4,12.28171]
[1744508926911,12.27926,1628.8,1628.4,6.14074]
[1744508927213,12.27926,1628.8,1628.3,14.18037]
[1744508927214,6.13994,1628.7,1628.3,14.18037]
[1744508927533,1.3775335,1628.8,1628.5,6.14055]
[1744508927687,0.802,1628.9,1628.7,6.13982]
[1744508928325,6.94001,1629.2,1628.8,6.13948]
[1744508928489,8.547773,1629.2,1628.8,6.13948]
[1744508928813,6.13847,1629.1,1628.7,6.13962]
[1744508929128,8.547773,1629.2,1628.8,6.13947]
[1744508929987,7.574982,1629.4,1629.0,6.13858]
[1744508930290,1.437722,1629.4,1629.0,6.13858]
[1744508930497,0.822,1629.4,1629.1,6.13834]
[1744508930705,6.9594,1629.4,1629.0,6.13872]
[1744508930908,13.09699,1629.4,1629.0,6.13872]
[1744508931106,6.9594,1629.4,1629.0,6.13872]
[1744508932333,0.822,1629.4,1629.1,6.13809]
[1744508933049,0.822,1629.4,1629.2,6.13786]
[1744508933246,0.822,1629.4,1629.1,6.13809]
[1744508933407,0.822,1629.4,1629.1,12.27624]
[1744508933754,0.822,1629.4,1629.1,6.13809]
[1744508934161,6.95923,1629.4,1629.0,6.13873]
[1744508934303,6.13801,1629.2,1628.9,8.039]
[1744508934640,6.13801,1629.2,1628.9,6.13906]
[1744508935012,6.1376,1629.3,1628.7,14.17885]
[1744508935328,6.13828,1629.2,1628.7,14.17868]
[1744508935503,12.27649,1629.2,1628.8,6.13933]
[1744508935713,6.1377,1629.3,1628.9,6.13903]
[1744508935914,6.95932,1629.4,1629.0,6.13853]
[1744508936114,13.09692,1629.4,1629.0,6.13853]
[1744508936526,6.95932,1629.4,1629.0,12.2771]
[1744508936727,13.792852,1629.4,1629.0,6.13853]
[1744508937142,6.1376,1629.3,1629.0,6.13853]
[1744508937653,7.655252,1629.4,1629.0,6.13853]
[1744508937824,4.517932,1629.4,1628.7,6.96698]
[1744508938030,12.27719,1629.1,1628.7,6.13968]
[1744508938212,1.227719,1629.1,1628.8,6.13944]
[1744508938421,6.1381,1629.2,1628.8,6.13936]
[1744508938614,6.1381,1629.2,1628.7,6.13984]
[1744508938615,6.93385,1629.1,1628.7,6.13984]
[1744508938828,6.13803,1629.2,1628.8,6.13921]
[1744508939150,13.07068,1629.3,1628.9,6.1391]
[1744508939343,6.13799,1629.2,1628.9,6.1391]
[1744508939515,1.307081,1629.2,1628.8,6.13944]
[1744508939715,6.13869,1629.1,1628.8,6.13946]
[1744508939928,6.93281,1629.3,1628.7,6.13986]
[1744508940120,6.93281,1629.3,1628.9,6.1389]
[1744508940549,6.93281,1629.3,1628.9,12.27787]
[1744508940852,6.93281,1629.3,1629.0,6.13869]
[1744508941154,0.715932,1629.4,1629.0,6.13869]
[1744508941155,0.02,1629.4,1629.3,6.1376]
[1744508941357,0.02,1629.4,1629.2,6.13782]
[1744508942427,0.02,1629.4,1629.0,6.95204]
[1744508942627,6.15745,1629.4,1629.0,6.95198]
[1744508942829,0.02,1629.4,1629.1,6.13831]
[1744508943028,0.02,1629.4,1629.2,6.13796]
[1744508944030,0.02,1629.4,1629.0,6.13869]
[1744508944225,6.15744,1629.4,1629.0,12.2772]
[1744508944444,6.15744,1629.4,1629.0,6.13851]
[1744508944961,1.24943,1629.4,1628.9,6.13905]
[1744508945262,6.1382,1629.2,1628.8,0.8134]
[1744508945460,6.1388,1629.0,1628.6,6.1399]
[1744508945758,6.13965,1628.8,1628.4,6.14097]
[1744508945969,6.13965,1628.8,1628.4,6.14082]
[1744508946149,0.762,1629.0,1628.6,6.14002]
[1744508946353,6.13911,1628.9,1628.6,6.14002]
[1744508946661,1.452041,1629.0,1628.2,6.14171]
[1744508946662,6.14037,1628.6,1628.2,6.14171]
[1744508946826,6.13992,1628.7,1628.2,6.14158]
[1744508947162,6.13992,1628.7,1628.3,6.14123]
[1744508947338,6.13915,1628.9,1628.2,6.14175]
[1744508947666,6.13951,1628.8,1628.5,6.14053]
[1744508948436,6.13922,1628.9,1628.5,6.14048]
[1744508948637,7.590811,1629.0,1628.6,12.28009]
[1744508949192,9.03660368,1629.3,1628.6,12.28009]
[1744508949193,0.762,1629.2,1628.9,6.1389]
[1744508949335,0.762,1629.2,1628.8,6.13948]
[1744508949532,0.762,1629.2,1628.5,6.14055]
[1744508949533,6.13889,1629.0,1628.6,6.13995]
[1744508949774,6.13889,1629.0,1628.6,12.27998]
[1744508950073,6.13889,1629.0,1628.6,12.27997]
[1744508950273,6.90153,1628.8,1628.4,6.14097]
[1744508950452,6.90153,1628.8,1628.4,12.28181]
[1744508950640,6.14038,1628.6,1628.2,13.92961]
[1744508950842,0.762,1628.8,1628.3,6.14137]
[1744508951050,9.96967,1629.0,1628.3,6.14137]
[1744508951256,0.996967,1628.9,1628.6,12.28013]
[1744508951472,6.96967,1629.0,1628.6,12.28013]
[1744508951740,6.96967,1629.0,1628.6,6.14005]
[1744508952170,13.10866,1629.0,1628.6,6.14005]
[1744508952679,6.96967,1629.0,1628.6,12.28012]
[1744508952884,0.8309,1629.2,1628.7,6.13986]
[1744508953066,10.22203471,1629.4,1629.0,12.27715]
[1744508953275,10.22203471,1629.4,1629.0,12.27708]
[1744508953478,4.08460471,1629.4,1629.0,14.70512]
[1744508953688,4.08460471,1629.4,1629.3,6.1376]
[1744508953890,4.08460471,1629.4,1629.3,7.365121]
[1744508954191,4.08460471,1629.4,1629.3,1.227521]
[1744508954363,4.08460471,1629.4,1629.2,6.13761]
[1744508954687,0.02,1629.4,1629.3,6.1376]
[1744508955387,0.02,1629.4,1629.3,6.916]
[1744508955796,5.20908109,1629.9,1629.6,6.13636]
[1744508955954,6.41117672,1630.2,1629.6,6.13636]
[1744508955955,6.41117672,1630.2,1630.1,6.13459]
[1744508956156,6.41117672,1630.2,1630.0,6.13483]
[1744508957484,6.41117672,1630.2,1629.9,6.1353]
[1744508957670,17.58376272,1630.4,1629.9,6.1353]
[1744508957671,6.15356,1630.4,1629.9,6.13506]
[1744508958003,6.15356,1630.4,1629.5,52.653]
[1744508958004,6.96552,1630.1,1629.5,52.653]
[1744508958201,6.13627,1629.7,1629.4,0.7784]
[1744508958369,6.13512,1630.0,1629.5,6.1366]
[1744508958572,6.13533,1630.0,1629.4,6.137]
[1744508958775,13.94054,1630.4,1629.9,6.135]
[1744508958776,17.77136,1630.4,1629.9,6.135]
[1744508958972,0.8509,1630.4,1630.1,6.13441]
[1744508959172,0.02,1630.4,1630.1,6.13441]
[1744508959380,0.02,1630.4,1630.0,6.13477]
[1744508959883,6.15351,1630.4,1630.0,6.13494]
[1744508960087,6.15351,1630.4,1629.9,6.13507]
[1744508960288,6.15351,1630.4,1630.0,6.13496]
[1744508960483,0.02,1630.4,1630.0,6.13475]
[1744508960805,0.02,1630.4,1630.0,12.26955]
[1744508961007,0.02,1630.4,1630.0,6.13475]
[1744508961213,0.02,1630.4,1629.8,7.787]
[1744508961214,0.635309,1630.4,1629.8,7.787]
[1744508961396,6.13478,1630.1,1629.8,7.787]
[1744508962100,6.13478,1630.1,1629.7,13.92088]
[1744508962496,6.89025,1630.3,1629.7,7.785]
[1744508962814,6.13542,1629.9,1629.5,6.13682]
[1744508963186,6.1353,1630.0,1629.6,6.13647]
[1744508963514,6.13523,1630.0,1629.5,12.27351]
[1744508963822,6.13542,1629.9,1629.5,20.05851]
[1744508964225,6.13585,1629.8,1629.5,7.785]
[1744508964379,12.27183,1629.8,1629.5,7.785]
[1744508964713,0.7564,1629.9,1629.5,7.785]
[1744508964911,6.89179,1629.9,1629.5,7.785]
[1744508965112,6.13588,1629.8,1629.5,7.785]
[1744508965480,12.27185,1629.8,1629.5,7.785]